Cogmind - Beta 15 @@@ ROGUE MODE // 2025.06.03 @ 22:12:17 Player: Andru7428 Result: Destroyed by X-82 Rainmaker with Heavy Flak Cannon Performance ------------- Evolutions (8) 4000 Regions Visited (23) 4600 Robots Destroyed (452) 2260 Value Destroyed (22840) 22840 Prototype IDs (41) 820 Alien Tech Used (4) 800 Bonus (11507) 11507 TOTAL SCORE: 46827 Bonus ------- High Alert Combat Kills 1151 Follower Combat Kills 3323 Entered Garrisons 1800 Used RIF Installer 5500 Friendly Fire -267 Cogmind --------- Core Integrity 0/1450 Matter 300/300 Energy 379/440 System Corruption 10% Temperature Cool (14) Movement Walking (113) Location -2/Research Parts ------- > --- POWER (2) -------- Micro Antimatter Reactor Light Quantum Reactor > --- PROPULSION (4) --- Improved VSS Leg Biometal Leg Heavy Shield Leg > --- UTILITY (14) ----- Advanced Heat Sink Small Battery Small Battery Stasis Canceller ECM Suite Heavy Armor Plating Improved Medium Armor Plating Heavy Insulated Plating Graphene Brace Relay Coupler [Grunt] (26) Relay Coupler [Duelist] (33) Relay Coupler [Hunter] (1) > --- WEAPON (3) ------- Gamma Rifle Gamma Rifle Plasma Lance (fused) > --- INVENTORY (5) ---- Heavy Shield Leg Advanced Remote Datajack Power Sword Peak State ------------ > --- POWER ------------ Quantum Reactor Light Quantum Reactor > --- PROPULSION ------- Enhanced Biometal Leg Centrium Leg Heavy Shield Leg > --- UTILITY ---------- Coolant Network Enhanced Optical Array Advanced Target Analyzer Precision Energy Filter Layered Heavy Armor Plating Phase Redirector Relay Coupler [Swarmer] Relay Coupler [Grunt] Relay Coupler [Grunt] Relay Coupler [Grunt] Relay Coupler [Duelist] Relay Coupler [Hunter] > --- WEAPON ----------- Core Cannon Plasma Lance > --- INVENTORY -------- Terrabomb Advanced Remote Datajack Core Stripper [Rating: 178] Favorites ----------- Power Light Antimatter Reactor Engine Improved Deuterium Engine Power Core Enhanced Fission Core Reactor Light Antimatter Reactor Propulsion Light Treads Treads Light Treads Leg Improved Titanium Leg Wheel Armored Huge Wheel Flight Unit Surge Thruster Utility Relay Coupler [Grunt] Device Seismic Detector Storage High-capacity Storage Unit Processor Advanced Visual Processing Unit Hackware Relay Coupler [Grunt] Protection Improved Light Armor Plating Artifact Phase Redirector Weapon Precision Assault Rifle Energy Gun Precision Beam Rifle Energy Cannon Cooled Plasma Cannon Ballistic Gun Precision Assault Rifle Ballistic Cannon Enhanced Hardcell Cannon Launcher Mini Grenade Launcher Special Weapon Remote Datajack Impact Weapon Impact Mace Slashing Weapon Segregator Piercing Weapon Plasma Lance Special Melee Weapon Advanced Datajack Build | -11 -10 -10 -8 -8 -8 -8 -7 -7 -7 -7 -6 -6 -6 -6 -5 -5 -4 -4 -3 -3 -3 -3 -2 ------- Run | Yrd Mat Sub Mat Gar Mat Gar Fac Gar Fac Gar Fac Gar Fac Gar Fac Gar Fac Gar Res Gar Res Qua Res Slots Evolved 16 | . . . 4 . . . 2 . . . 2 . . . 2 . 2 . 2 . . . 2 Power 1 | . . . . . . . . . . . . . . . . . . . . . . . 1 Propulsion 2 | . . . 1 . . . . . . . . . . . . . 1 . . . . . . Utility 12 | . . . 2 . . . 2 . . . 2 . . . 2 . 1 . 2 . . . 1 Weapon 1 | . . . 1 . . . . . . . . . . . . . . . . . . . . Parts Attached 365 | 7 10 6 30 8 10 11 21 6 23 10 10 15 13 11 8 19 19 27 13 35 7 13 33 Power 42 | 1 1 1 2 1 . 1 2 . 2 . . 2 1 1 1 3 2 2 2 13 . . 4 Engine 13 | 1 . 1 2 1 . . 1 . 2 . . . . . 1 1 . . . 3 . . . Core 9 | . 1 . . . . . 1 . . . . 1 1 . . 1 1 2 1 . . . . Reactor 20 | . . . . . . 1 . . . . . 1 . 1 . 1 1 . 1 10 . . 4 Propulsion 63 | 2 . 1 8 4 4 3 1 1 2 1 3 1 2 2 . 3 3 4 1 8 1 3 5 Treads 38 | 2 . . 7 4 . 1 . . 2 1 2 . 2 1 . 3 3 4 1 5 . . . Leg 19 | . . . . . 4 2 1 . . . . . . . . . . . . 3 1 3 5 Wheel 5 | . . 1 1 . . . . 1 . . 1 1 . . . . . . . . . . . Hover . | . . . . . . . . . . . . . . . . . . . . . . . . Flight 1 | . . . . . . . . . . . . . . 1 . . . . . . . . . Utility 170 | 2 6 2 9 1 6 6 12 3 11 6 3 7 4 7 6 13 9 14 8 7 4 6 18 Device 49 | 1 1 . 4 1 1 3 4 . 5 . . 2 2 4 3 2 2 1 3 1 . 2 7 Storage 15 | 1 2 . 1 . 1 . 1 1 . . . 1 . . . . 1 . . . 1 . 5 Processor 16 | . . . . . . 1 4 . . . 1 . 2 . . 2 1 . 1 . 1 2 1 Hackware 39 | . . . . . . . . . 2 2 2 4 . 1 . 8 2 10 2 4 1 . 1 Protection 50 | . 3 2 4 . 4 2 3 2 4 4 . . . 2 3 1 3 3 2 2 1 1 4 Artifact 1 | . . . . . . . . . . . . . . . . . . . . . . 1 . Weapon 90 | 2 3 2 11 2 . 1 6 2 8 3 4 5 6 1 1 . 5 7 2 7 2 4 6 Energy Gun 25 | 2 1 . 6 1 . 1 . . 4 1 3 1 1 . . . 1 . . . . . 3 Energy Cannon 9 | . . . . . . . . . . . . 4 2 . 1 . 1 . . . . 1 . Ballistic Gun 12 | . 1 . 3 1 . . 5 . 1 . . . . . . . . . . . . . 1 Ballistic Cannon 13 | . . . 1 . . . . 1 . . . . . . . . . 6 . 3 1 1 . Launcher 6 | . 1 1 . . . . . 1 . 1 . . . . . . . . 1 1 . . . Special Weapon 13 | . . . . . . . . . 1 1 1 . 3 1 . . 1 1 1 1 1 . 1 Impact Weapon 6 | . . 1 1 . . . . . 2 . . . . . . . 1 . . . . . 1 Slashing Weapon 2 | . . . . . . . . . . . . . . . . . . . . 2 . . . Piercing Weapon 2 | . . . . . . . . . . . . . . . . . . . . . . 2 . Special Melee Weapon 2 | . . . . . . . 1 . . . . . . . . . 1 . . . . . . Unidentified Prototypes 21 | . . . 7 . . . 1 . 2 . . . . 1 . . 1 . . . 2 6 1 Parts Lost 98 | . 1 6 3 . 1 8 1 4 1 1 . 3 4 1 . 4 8 11 2 12 1 6 20 Power 21 | . . 1 . . . 1 . 1 . 1 . . 1 . . 1 1 1 . 10 . . 3 Propulsion 12 | . . 2 . . . 2 . . 1 . . . . . . 1 . 2 1 . . 1 2 Utility 44 | . . 2 3 . 1 4 1 2 . . . 1 2 1 . 2 4 3 1 1 1 4 11 Weapon 21 | . 1 1 . . . 1 . 1 . . . 2 1 . . . 3 5 . 1 . 1 4 Highest Loss Streak 11 | . 1 2 1 . 1 5 1 3 1 1 . 1 4 1 . 2 4 6 2 3 1 2 11 To Critical Strikes 1 | . . . . . . . . . . . . . . . . . . 1 . . . . . Average Backups 15 | 6 11 13 13 14 13 11 13 15 18 17 16 16 17 17 16 18 16 17 19 19 18 8 3 Power . | 1 1 . . 1 1 . 1 . 1 . 1 1 . 1 . . . . 1 1 1 . . Propulsion 1 | 3 2 1 1 2 2 . 1 1 1 1 1 1 1 1 1 1 1 . 1 . 1 . . Utility 6 | . 5 6 4 4 5 5 4 6 7 6 7 6 6 8 7 7 6 8 8 9 8 3 . Weapon 6 | 1 2 4 6 6 5 5 6 4 7 8 6 7 7 6 6 7 6 6 6 6 6 2 1 Tool/Special . | . . . . . . . . . . . . . . . . . . . . . . . . Unused Backups 78 | . 10 . 14 1 2 3 4 . 5 2 1 3 2 2 . 2 2 4 . 5 3 11 2 Power 8 | . 1 . 2 . . . 1 . . . 1 . . 1 . . . . . 1 . 1 . Propulsion 14 | . 3 . 2 . 1 2 1 . 2 1 . . . . . . 1 . . 1 . . . Utility 30 | . 5 . 6 . 1 . 2 . . . . 3 1 1 . 1 . 2 . 2 1 5 . Weapon 18 | . 1 . 3 1 . 1 . . 3 . . . 1 . . 1 1 2 . . 1 2 1 Tool/Special 8 | . . . 1 . . . . . . 1 . . . . . . . . . 1 1 3 1 Average Slot Usage (%) 89 | . 100 92 97 100 99 96 99 95 85 84 85 89 86 87 91 82 84 85 89 90 89 85 68 Engine 2 | . 4 12 8 9 9 4 2 6 6 . . . . . 3 2 . . . . . . . Core 1 | . 9 1 . . . . 1 . . . . 1 . . . . 4 3 3 1 . . . Reactor 2 | . . . . . . 4 2 . . 6 6 4 6 6 1 7 1 1 . 1 4 4 6 Treads 9 | . 28 15 20 27 1 . . . 4 7 6 5 6 5 5 6 10 10 15 16 . . . Leg 4 | . . . . . 25 25 22 15 2 . . . . . . . . . . 1 13 14 11 Wheel 2 | . . 6 4 . . . . 3 6 7 6 6 6 6 5 2 . . . . . . . Device 5 | . 7 1 14 9 9 12 7 3 6 6 6 5 6 7 7 9 2 . 2 . . 2 9 Storage 6 | . 14 14 9 9 9 9 7 7 7 7 6 9 6 7 5 5 5 6 4 4 4 1 3 Processor 5 | . . . . . . . 14 15 7 7 6 6 5 6 4 . 5 5 4 4 5 11 3 Hackware 17 | . . . . . . . . . 6 7 19 20 20 19 16 23 32 37 42 42 40 32 20 Protection 8 | . 6 12 11 17 17 12 14 18 9 7 6 5 6 5 18 9 7 3 4 3 3 4 2 Energy Gun 5 | . 21 6 11 13 17 26 7 . 4 10 8 8 7 . . . . . . . . . 1 Energy Cannon 2 | . . . . . . . . . . . . 4 5 13 10 5 8 1 . . . . 1 Ballistic Gun 4 | . 6 1 8 9 9 . 12 21 12 8 4 . . . . . . . . . . . . Ballistic Cannon 1 | . . . 1 . . . . . . . . . . . . . . 5 4 5 9 6 . Special Weapon 2 | . . . . . . . . . 1 2 2 5 4 5 5 4 2 4 4 2 3 1 . Impact Weapon 1 | . . 7 4 4 . . 3 1 3 . 3 . 1 . . . . 2 . . . . . Peak Build Rating 178 | 7 13 13 36 38 45 44 59 54 58 66 74 77 81 79 87 109 122 116 98 128 132 156 178 Average Rating 70 | 3 10 11 29 35 43 40 51 52 53 62 70 72 76 71 71 96 108 98 92 94 129 138 125 On Entrance 66 | . 7 13 11 35 37 43 44 50 54 52 64 70 77 75 70 87 108 114 89 86 128 132 156 Naked Turns . | . . . . . . . . . . . . . . . . . . . . . . . . Heaviest Build 116 | 13 50 36 45 48 53 51 57 75 84 92 88 94 106 99 104 108 107 95 93 116 111 111 95 Greatest Support 150 | 40 40 40 62 62 62 57 57 57 28 28 28 30 28 30 28 95 150 145 116 120 120 120 120 Greatest Overweight (x) 4 | 1 4 2 1 . 2 1 . 2 2 3 3 3 3 3 3 4 . 1 1 1 . 2 1 Average Overweight (x) 1 | . . . . . . . . . 2 2 2 2 3 2 2 1 . . . . . . . Largest Inventory Capacity 25 | 8 20 15 15 15 15 15 15 20 20 20 20 20 20 20 20 20 20 20 20 20 20 20 25 Average Capacity 17 | 7 13 15 15 15 15 15 15 17 20 20 20 20 20 20 20 20 20 20 20 20 20 10 5 Most Carried 20 | 8 15 15 15 15 15 15 15 20 20 20 20 20 20 20 20 20 20 20 20 20 20 20 8 Average Carried 17 | 6 11 13 14 14 14 12 14 16 19 19 19 19 19 19 19 19 19 19 19 19 19 9 4 Final Capacity 20 | 8 15 15 15 15 15 15 15 20 20 20 20 20 20 20 20 20 20 20 20 20 20 5 5 Final Carried 20 | 7 15 12 15 15 15 15 15 19 20 20 20 20 20 20 19 20 18 20 20 20 20 5 4 Class Distribution -------------------- 31% | Botlord-Tank 18% | Mutant 18% | Tank 14% | Botlord-Mutant 5% | Bothacker-Tank Dominant Class ---------------- Mutant | -10/Materials Mutant | -10/Subcaves Mutant | -8/Materials Tank | -8/Garrison Tank | -8/Materials Tank | -8/Garrison Mutant | -7/Factory Tank | -7/Garrison Mutant | -7/Factory Bothacker-Tank | -7/Garrison Bothacker-Mutant | -6/Factory Botlord-Tank | -6/Garrison Botlord-Skirmisher | -6/Factory Botlord-Tank | -6/Garrison Botlord-Tank | -5/Factory Botlord-Tank | -5/Garrison Botlord-Mutant | -4/Factory Botlord-Tank | -4/Garrison Botlord-Tank | -3/Research Botlord-Tank | -3/Garrison Botlord-Tank | -3/Research Botlord-Mutant | -3/Quarantine Botlord-Mutant | -2/Research Resources | -11 -10 -10 -8 -8 -8 -8 -7 -7 -7 -7 -6 -6 -6 -6 -5 -5 -4 -4 -3 -3 -3 -3 -2 ----------- Run | Yrd Mat Sub Mat Gar Mat Gar Fac Gar Fac Gar Fac Gar Fac Gar Fac Gar Fac Gar Res Gar Res Qua Res Matter Collected 14731 | 204 305 282 1044 317 420 236 726 741 1051 992 405 692 375 597 138 610 447 1274 634 1296 976 611 358 Remotely . | . . . . . . . . . . . . . . . . . . . . . . . . Salvage Created 19247 | 14 796 131 1697 397 1150 914 1096 938 892 847 524 1007 826 504 459 1365 1257 708 551 617 624 1007 926 Parts 905 | 6 46 10 82 38 54 44 41 46 44 54 26 40 24 24 18 59 48 35 19 29 27 50 41 Haulers Intercepted 12 | . 2 . 4 . 2 . 2 . . . . . . . . . . . . . . 1 1 Recyclers Shooed 8 | . 1 . 2 . . . 1 . 1 . 2 . . . . . 1 . . . . . . Parts Field Recycled . | . . . . . . . . . . . . . . . . . . . . . . . . Retrieved Matter . | . . . . . . . . . . . . . . . . . . . . . . . . Parts Self-Destructed . | . . . . . . . . . . . . . . . . . . . . . . . . Prevented . | . . . . . . . . . . . . . . . . . . . . . . . . Kills | -11 -10 -10 -8 -8 -8 -8 -7 -7 -7 -7 -6 -6 -6 -6 -5 -5 -4 -4 -3 -3 -3 -3 -2 ------- Run | Yrd Mat Sub Mat Gar Mat Gar Fac Gar Fac Gar Fac Gar Fac Gar Fac Gar Fac Gar Res Gar Res Qua Res Combat Hostiles Destroyed 369 | . 16 8 25 20 18 26 11 22 13 24 12 23 8 13 8 32 18 16 10 7 11 16 12 Melee 12 | . . . . . . . . 1 . . . . . . . . . 1 . . . 6 4 Guns 154 | . 13 . 18 9 15 26 9 16 13 17 4 10 4 . . . . . . . . . . Cannons 106 | . . . 4 . . . . . . . . 1 3 9 5 21 14 7 10 7 10 10 5 AOE 69 | . 3 8 2 11 2 . 1 5 . 6 8 7 . 2 2 7 . 4 . . 1 . . Classes Destroyed 22 | 1 4 1 5 . 1 2 . 2 . . . 2 . . . 1 1 2 . . . . . Worker 14 | . 2 . 5 . . . 1 . . . . . . . 1 . 1 . . . 2 1 1 Builder 7 | . . . 1 . 1 . 1 . 1 . 1 . . . 1 . . . . . . . 1 Tunneler 2 | 1 . . . . . . . . 1 . . . . . . . . . . . . . . Hauler 12 | . 2 . 4 . 2 . 2 . . . . . . . . . . . . . . 1 1 Recycler 16 | . . . 4 . . . 5 . 3 . 1 . 2 . . . . . . . 1 . . Mechanic 1 | . . . 1 . . . . . . . . . . . . . . . . . . . . Operator 1 | . . . . . . . . . . . . . . . . . 1 . . . . . . Watcher 18 | . 2 . 5 . 2 . 2 . 1 . 1 . 2 . . 1 . . . 1 1 . . Swarmer 85 | . . . 4 14 2 11 3 5 . 6 8 6 . 2 . 15 3 1 . . 3 2 . Cutter 10 | . . . . . . . . . . . . 2 . 4 . . . 4 . . . . . Saboteur 1 | . . . . . . 1 . . . . . . . . . . . . . . . . . Grunt 113 | . 16 . 14 3 9 7 4 11 3 2 . 9 2 3 3 8 3 1 6 4 2 3 . Brawler 6 | . . . . . . . . 1 . 1 . 2 1 . . 1 . . . . . . . Duelist 11 | . . . . . 1 . . . 1 3 . 1 1 . . 1 . 3 . . . . . Protector 1 | . . . . . . . . . . . . . . . . . . 1 . . . . . Sentry 54 | . . . 7 3 6 5 1 3 2 3 3 2 1 3 2 4 2 2 . . 2 2 1 Demolisher 1 | . . . . . . . . . . . . . . . . . . 1 . . . . . Specialist 3 | . . . . . . . . . . . . . . . . 2 . . . . . . 1 Hunter 16 | . . . . . . . . 1 1 2 . . . . 2 2 1 1 . . 2 . 4 Programmer 66 | . . . . . . 2 3 1 6 7 1 1 4 2 1 . 10 1 5 5 2 10 5 Behemoth 6 | . . . . . . . . . . . . 1 . . . 1 1 1 . . 1 . 1 Subdweller 8 | . . 8 . . . . . . . . . . . . . . . . . . . . . Best Kill Streak 10 | 1 3 2 5 4 3 7 4 5 2 5 4 7 3 4 4 10 4 5 3 2 4 3 3 Combat Bots Only 10 | . 3 2 4 4 3 7 3 5 2 5 4 7 2 4 2 10 4 5 3 2 3 3 3 Max Kills in Single Turn 4 | 1 2 1 2 3 3 2 3 4 1 2 4 3 1 2 4 4 1 3 2 1 2 2 2 Gunslinging 1 | . . . . . . 1 . . . . . . . . . . . . . . . . . Exploded 4 | . 2 1 1 3 2 . 1 4 . 2 4 3 . 2 2 4 . 3 . . 1 . . Melee 1 | . . . . . . . . 1 . . . . . . . . . 1 . . . 1 1 Uniques/NPCs Destroyed . | . . . . . . . . . . . . . . . . . . . . . . . . Combat | -11 -10 -10 -8 -8 -8 -8 -7 -7 -7 -7 -6 -6 -6 -6 -5 -5 -4 -4 -3 -3 -3 -3 -2 -------- Run | Yrd Mat Sub Mat Gar Mat Gar Fac Gar Fac Gar Fac Gar Fac Gar Fac Gar Fac Gar Res Gar Res Qua Res Hostile Shots Fired 2449 | . 71 21 87 51 70 134 51 313 96 201 25 128 55 85 20 84 158 112 48 51 63 169 356 Missed 690 | . 17 9 24 10 25 28 19 99 35 55 10 24 14 24 5 16 46 19 12 16 24 45 114 Deflected 3 | . . . . . . . . . . . . . . . . . . . . . 1 2 . Hits 1759 | . 54 12 63 41 45 106 32 214 61 146 15 104 41 61 15 68 112 93 36 35 39 124 242 Melee 49 | . . . . . 2 1 . . . 7 . 8 13 3 . 1 . 14 . . . . . Projectile 1710 | . 54 12 63 41 43 105 32 214 61 139 15 96 28 58 15 67 112 79 36 35 39 124 242 AOE 15 | . . 5 . . . . . . 2 1 . 3 . . . . . 3 . . 1 . . Critical Strikes 78 | . 2 . 3 . 1 1 1 2 1 4 . 6 2 4 1 2 8 11 3 1 1 12 12 Actively Blocked 6 | . . . . . . . . . . . . . . . . . . . . . . . 6 Part Disruptions 8 | . . . . . . . . 2 . 1 . . . . . . . . . . . 2 3 Damage Taken 30583 | . 705 604 846 532 682 1305 438 1293 878 1785 210 1797 1109 499 349 1316 2625 2977 754 965 999 2893 5022 Core 3126 | . 147 80 100 26 42 145 27 121 57 118 27 151 256 14 . 133 114 169 44 177 74 147 957 Absorbed by Shields 2094 | . . . . . . 24 48 1044 . 302 . 294 . 114 . 122 . 81 . 65 . . . Reduced by Siege Mode 139 | . . . . . . . . . . . . . . . . . 58 71 10 . . . . Redirected to Core 273 | . . . . . . . . . . . . . . . . . . . . . . . 273 Redirected to Shielding 6 | . . . . . . . . . . . . . . . . . . 6 . . . . . Ignored by Resistances 157 | . . . 14 14 38 . . . . . . . . . . . . . 52 . 8 . 31 Regen/Repaired (Parts) 1400 | . . . 141 . . . 219 . 284 . . . 716 40 . . . . . . . . . Core Remaining (%) 58 | 100 . 9 . . . 43 . . . 53 . . . 47 . 86 . 75 . . . 56 . Volleys Fired 1280 | 2 76 23 87 35 50 51 31 47 58 84 28 75 44 60 38 118 86 84 44 56 48 23 32 Largest 3 | 2 2 1 3 3 3 3 3 3 3 3 2 3 2 2 2 1 2 2 1 2 2 2 2 Hottest 300 | 80 85 30 147 145 155 183 183 84 131 131 130 185 176 176 70 45 210 240 65 116 116 300 300 Shots Fired 2319 | 4 136 23 214 81 148 147 91 130 121 165 47 140 69 93 64 119 138 104 44 77 83 39 42 Gun 1381 | 4 129 . 200 75 147 147 91 128 111 146 37 110 33 . . . 3 1 . . . . 19 Cannon 687 | . . . 11 . . . . . . . . 16 23 71 59 82 125 74 33 66 70 35 22 Launcher 56 | . 7 23 3 6 1 . . 2 . 4 2 3 . 1 . 2 . 2 . . . . . Special 195 | . . . . . . . . . 10 15 8 11 13 21 5 35 10 27 11 11 13 4 1 Kinetic 797 | . 32 . 93 29 49 . 64 128 55 80 10 . . . . . . 59 33 66 70 29 . Thermal 1010 | 4 97 . 118 46 98 147 27 . 15 37 9 27 41 55 59 82 118 2 . . . 6 22 Explosive 56 | . 7 23 3 6 1 . . 2 . 4 2 3 . 1 . 2 . 2 . . . . . Electromagnetic 261 | . . . . . . . . . 41 29 18 99 15 16 . . 10 14 . . . . 19 Robot Hit Streak 32 | 2 8 8 14 21 12 32 15 16 17 12 15 13 14 8 15 13 12 13 11 17 7 7 10 Robot Miss Streak 12 | 1 2 1 5 3 2 5 2 3 9 7 5 12 7 4 3 5 4 4 3 3 7 2 3 Penetration Max 2 | . . . . . 1 . . . . . . . . . . . . . 1 . . 1 2 Secondary Targets 17 | . . . 2 1 1 7 . 2 . 3 . 1 . . . . . . . . . . . Max Gunslinging Chain 1 | . . . 1 1 1 1 . 1 . 1 . 1 . . . . . . . . . . . Capacitor 94 | . . . . . . . . . . . . . . . . 82 12 . . . . . . Shots Hit Robots 1658 | 3 90 11 158 55 98 101 62 97 96 125 41 104 43 50 37 77 87 79 30 63 50 55 46 Core Hits 816 | 1 45 12 83 31 39 42 31 52 52 86 38 59 14 24 12 45 32 29 10 18 23 21 17 Critical Kills 35 | . . . 1 . 6 . . 4 . . . . 2 1 . 5 3 7 . . . 2 4 Critical Parts Destroyed 55 | . . . 2 . 9 . . 2 5 . . 3 2 . . . . 14 . . . 6 12 Critical Strikes 156 | . . . 10 4 21 12 1 6 5 . . 6 4 1 . 5 3 26 4 4 3 20 21 Burn 30 | . . . 7 4 6 12 1 . . . . . . . . . . . . . . . . Meltdown 9 | . . . . . . . . . . . . . . 1 . 5 3 . . . . . . Destroy 80 | . . . 3 . 15 . . 6 1 . . 1 4 . . . . 25 . . . 7 18 Blast 15 | . . . . . . . . . . . . . . . . . . . 4 4 3 4 . Corrupt 1 | . . . . . . . . . . . . 1 . . . . . . . . . . . Smash 10 | . . . . . . . . . 4 . . 4 . . . . . 1 . . . 1 . Impale 11 | . . . . . . . . . . . . . . . . . . . . . . 8 3 Melee Attacks 243 | . . 6 11 8 . 3 19 4 44 . 6 12 8 . . . 4 17 . 10 5 53 33 Kinetic 3 | . . . . . . . . . . . . . . . . . . . . . . . 3 Thermal 10 | . . . . . . . . . . . . . . . . . . . . 10 . . . Impact 148 | . . 6 11 8 . 3 19 4 44 . 6 12 8 . . . . 17 . . 5 5 . Slashing . | . . . . . . . . . . . . . . . . . . . . . . . . Piercing 78 | . . . . . . . . . . . . . . . . . . . . . . 48 30 Sneak Attacks 23 | . . . 5 . . . 2 . 5 . 2 . 1 . . . 2 2 . . . 3 1 Combat Hostiles 2 | . . . . . . . . . . . . . . . . . . 2 . . . . . Follow-up Attacks . | . . . . . . . . . . . . . . . . . . . . . . . . Damage Inflicted 52511 | 39 1323 1441 3556 1682 1516 1756 1769 2359 1931 2633 1348 2656 1324 1347 1521 3139 3185 2405 1638 2517 2464 4132 4830 Guns 16482 | 31 943 . 2648 794 1379 1756 1210 1814 1380 2023 607 1133 468 . . . 37 . . . . . 259 Cannons 21666 | . . . 191 . . . . . . . . 418 599 1144 1029 2700 2810 932 1638 2517 1578 2350 3760 Explosions 8596 | . 376 1441 261 712 137 . 341 436 59 610 524 652 141 203 492 439 328 558 . . 886 . . Melee 5737 | . . . 448 176 . . 218 109 492 . 217 453 116 . . . . 915 . . . 1782 811 Ramming 30 | 8 4 . 8 . . . . . . . . . . . . . 10 . . . . . . Kinetic 13877 | . 154 . 1341 257 218 . 833 1814 868 1109 182 . . . . . . 675 1638 2517 1578 600 93 Thermal 21950 | 31 789 . 1498 537 1161 1756 377 . 286 739 198 259 808 820 1521 2700 2960 . . . . 1750 3760 Explosive 7510 | . 376 1441 261 712 137 . 341 436 . 544 524 652 . 203 . 439 . 558 . . 886 . . Electromagnetic 3500 | . . . . . . . . . 285 241 227 1292 400 324 . . 215 257 . . . . 259 Impact 3601 | . . . 448 176 . . 218 109 492 . 217 453 116 . . . . 915 . . . 457 . Slashing . | . . . . . . . . . . . . . . . . . . . . . . . . Piercing 2043 | . . . . . . . . . . . . . . . . . . . . . . 1325 718 Highest Corruption 23 | . . . . . 2 4 2 3 3 4 6 6 14 14 3 3 21 23 6 8 8 10 10 Average Corruption 7 | . . . . . 2 3 1 2 2 3 4 6 9 14 2 3 10 22 4 7 8 8 5 Corruption Purged 5 | . . . . . . . . . 5 . . . . . . . . . . . . . . Corruption Blocked 15 | . . . . . . . . . . . . . . . . . . . . . . 15 . Effects 689 | . . . . . 9 23 6 20 37 27 14 53 46 58 10 32 56 120 9 82 38 39 10 Message Errors 179 | . . . . . 2 5 2 5 4 8 4 15 12 16 3 7 10 32 4 30 13 6 1 Matter Fused 158 | . . . . . 2 5 1 7 8 8 2 8 11 16 2 7 13 28 1 19 5 13 2 Heat Flow Errors 84 | . . . . . 1 2 2 1 3 2 . 8 10 6 2 6 9 16 2 6 6 2 . Energy Discharges 82 | . . . . . 1 3 1 3 11 3 4 9 4 2 . 2 8 13 . 10 4 4 . Parts Rejected 8 | . . . . . . 1 . . . . . 1 . 1 . . 3 1 . 1 . . . Parts Fused 6 | . . . . . . . . . . . . . . 1 . 1 . 2 . 1 . . 1 Data Loss (minor) 72 | . . . . . 2 2 . 3 7 2 2 4 5 3 . 6 4 12 1 9 5 3 2 Data Loss (major) 35 | . . . . . . 3 . . 1 1 1 1 2 5 1 . 3 5 1 4 1 6 . Misfires 30 | . . . . . . 1 . . 2 2 1 4 1 3 . 2 2 3 . 2 3 2 2 Alerts 18 | . . . . . 1 . . . 1 1 . 1 . 3 2 . 3 3 . . . 3 . Misdirections 2 | . . . . . . . . . . . . . 1 . . . . . . . . . 1 Weapon Failures 15 | . . . . . . 1 . 1 . . . 2 . 2 . 1 1 5 . . 1 . 1 Overload Shots 9 | . . . . . . . . . . . . . . 4 . . 4 1 . . . . . Effects 2 | . . . . . . . . . . . . . . 1 . . 1 . . . . . . Energy Bleed 1 | . . . . . . . . . . . . . . 1 . . . . . . . . . Heat Surge 1 | . . . . . . . . . . . . . . . . . 1 . . . . . . Overflow Damage 4417 | . 11 54 87 85 . . 72 . 320 9 173 96 156 35 180 75 171 172 181 104 86 1182 1168 Projectiles 2701 | . . . . . . . . . . . . . 30 35 41 75 85 2 181 104 79 944 1125 Explosions 411 | . 11 54 . 57 . . . . . 9 8 . 40 . 139 . 86 . . . 7 . . Melee 1305 | . . . 87 28 . . 72 . 320 . 165 96 86 . . . . 170 . . . 238 43 Knockbacks 25 | . . . 3 2 . . . . 1 . 2 . . . . . . 4 5 3 3 2 . Impact 7 | . . . 2 2 . . . . 1 . 2 . . . . . . . . . . . . Kinetic 18 | . . . 1 . . . . . . . . . . . . . . 4 5 3 3 2 . Secondary . | . . . . . . . . . . . . . . . . . . . . . . . . Self-Inflicted Damage 674 | . . 39 . 25 . . 44 . . 54 . 31 . . . 102 110 216 . . 53 . . Shots 23 | . . 1 . 2 . . 1 . . 2 . 1 . . . 4 1 10 . . 1 . . Rammed 10 | 3 4 . 2 . . . . . . . . . . . . . 1 . . . . . . Targets Rammed 10 | 3 4 . 2 . . . . . . . . . . . . . 1 . . . . . . Kicked . | . . . . . . . . . . . . . . . . . . . . . . . . Crushed . | . . . . . . . . . . . . . . . . . . . . . . . . Highest Temperature 546 | 36 350 . 417 72 123 408 268 388 260 356 48 389 546 259 218 347 426 268 249 235 263 428 320 Average Temperature 84 | 20 89 . 62 27 30 77 78 88 65 92 27 132 137 48 43 88 113 77 82 63 79 118 105 Received Heat Transfer 4737 | . 432 24 441 63 333 400 57 372 141 155 6 233 15 105 45 519 415 171 118 29 66 174 423 Effects 32 | . 4 . . . . 3 . 4 . 1 . 2 9 . . 2 3 . 1 . 1 2 . Shutdowns 4 | . 1 . . . . . . . . . . 1 1 . . 1 . . . . . . . Energy Bleed 6 | . 1 . . . . . . . . 1 . 1 1 . . . . . 1 . 1 . . Interference 13 | . 2 . . . . 3 . 3 . . . . 2 . . . 3 . . . . . . Matter Decay 1 | . . . . . . . . . . . . . . . . . . . . . . 1 . Short Circuit 3 | . . . . . . . . 1 . . . . . . . 1 . . . . . 1 . Damage (major) 4 | . . . . . . . . . . . . . 4 . . . . . . . . . . Damage (core) 1 | . . . . . . . . . . . . . 1 . . . . . . . . . . Siege Activations 7 | . . . . . . . . . . . . . . . . . 2 3 2 . . . . Total Turns 138 | . . . . . . . . . . . . . . . . . 52 49 37 . . . . Longest Duration 38 | . . . . . . . . . . . . . . . . . 38 25 20 . . . . Martial Activations . | . . . . . . . . . . . . . . . . . . . . . . . . Shielding Activations 5 | . . . . . . . . . . . . . . . . . . . . . 2 3 . Total Turns 62 | . . . . . . . . . . . . . . . . . . . . . 33 29 . Longest Duration 18 | . . . . . . . . . . . . . . . . . . . . . 18 15 . Robots Disrupted 5 | . . . . . . . . . 1 1 . 3 . . . . . . . . . . . Combat Hostiles 5 | . . . . . . . . . 1 1 . 3 . . . . . . . . . . . Robots Corrupted 21 | . . . . . . . 2 . 1 1 2 5 2 1 . . . 4 . . . 1 2 Combat Hostiles 14 | . . . . . . . . . . 1 . 5 1 1 . . . 4 . . . . 2 Parts Fried 43 | . . . 2 . . . 3 . 9 1 3 10 5 1 . . 2 3 . . . 2 2 Impact Corruptions 33 | . . . 2 1 . . 3 . 9 . 7 3 2 . . . . 4 . . . 2 . Robots Melted 16 | . . . 1 . 1 . 1 . . . . . . 2 1 5 5 . . . . . . Combat Hostiles 13 | . . . 1 . 1 . 1 . . . . . . 1 1 4 4 . . . . . . Parts Melted 80 | . 4 . 2 . 13 13 3 2 . . . 1 6 2 5 10 16 . 1 1 . 1 . Heat Transferred 23697 | 75 1843 . 3700 1480 2960 4530 888 . 220 537 150 253 942 1122 1950 . 3047 . . . . . . Parts Sabotaged 4 | . . . . . . 4 . . . . . . . . . . . . . . . . . Parts Stolen . | . . . . . . . . . . . . . . . . . . . . . . . . Parts Stripped 15 | . . . . . . . . . . . . . . . . . . . . . . . 15 Power Chain Reactions 2 | . . . . . . . . . 1 1 . . . . . . . . . . . . . Alert | -11 -10 -10 -8 -8 -8 -8 -7 -7 -7 -7 -6 -6 -6 -6 -5 -5 -4 -4 -3 -3 -3 -3 -2 ------- Run | Yrd Mat Sub Mat Gar Mat Gar Fac Gar Fac Gar Fac Gar Fac Gar Fac Gar Fac Gar Res Gar Res Qua Res Maximum Alert Level 3 | . . . 1 3 2 3 2 2 1 2 1 1 1 2 1 3 2 2 1 3 2 1 . Low Security (%) 52 | 100 100 . 86 23 . . 40 12 90 37 54 56 92 14 38 8 70 77 81 19 . 91 100 Level 1 21 | . . . 13 18 36 13 52 25 9 24 45 43 7 40 61 10 27 18 18 12 . 8 . Level 2 20 | . . . . 39 63 34 6 61 . 38 . . . 45 . 48 2 4 . 46 100 . . Level 3 5 | . . . . 17 . 51 . . . . . . . . . 32 . . . 22 . . . Level 4 . | . . . . . . . . . . . . . . . . . . . . . . . . Level 5 . | . . . . . . . . . . . . . . . . . . . . . . . . High Security . | . . . . . . . . . . . . . . . . . . . . . . . . Max Security . | . . . . . . . . . . . . . . . . . . . . . . . . Peak Influence 1095 | 5 154 . 252 1002 580 866 454 653 342 619 353 396 224 488 355 794 409 435 244 1095 628 258 150 Initial 615 | . . . . 54 488 261 454 149 342 28 324 . 207 39 256 91 409 . 244 . 615 258 47 Average 249 | . 41 . 102 441 445 651 235 441 57 329 146 210 63 360 220 574 137 116 105 489 538 43 20 Influence Increases 12354 | 5 483 . 835 948 517 705 390 564 386 641 247 486 262 539 442 889 514 724 253 1295 466 379 384 Destroy 0b10 Robot/C 6036 | . 320 . 500 540 360 560 165 351 168 348 144 276 96 252 120 432 216 204 132 360 156 192 144 Destroy 0b10 Robot/NC 313 | 5 30 . 100 10 25 . 44 . 18 . 9 . 12 . 6 3 6 3 . 12 15 6 9 Destroy Leader 918 | . 88 . 128 30 108 30 56 24 68 30 38 12 34 18 30 24 48 6 18 36 22 32 38 Allied During Kill 487 | . . . . 40 2 4 . 12 1 23 12 3 1 41 26 27 16 27 49 157 43 . 3 Trap Triggered on 0b10 14 | . . . . . . . . 8 . 6 . . . . . . . . . . . . . Successful Hack 327 | . . . 27 14 . 21 25 16 45 9 3 9 25 18 8 9 40 9 13 . 18 13 5 Disable Machine 531 | . . . 15 15 15 . 36 . 9 . 9 9 45 9 126 36 36 27 . . 54 72 18 Anti-Garrison Action 1816 | . . . . 150 . . . 136 . 180 . 120 . 120 . 210 . 390 . 510 . . . Destroy Structure 1360 | . 30 . 35 104 7 15 28 17 41 27 32 21 40 18 126 67 134 40 32 184 158 64 140 Partial Spotted 18 | . . . . . . . . . 9 9 . . . . . . . . . . . . . Lose Combat Pursuer 534 | . 15 . 30 45 . 75 36 . 27 9 . 36 9 63 . 81 18 18 9 36 . . 27 Influence Decreases 12340 | 5 356 127 751 30 1116 242 1042 125 999 62 866 90 602 107 800 239 1294 289 688 200 1102 753 455 Entered New Map 3601 | . . 62 . 30 514 142 412 65 311 12 295 . 189 17 232 39 371 . 191 . 480 201 38 Time Decay 5821 | 5 346 55 578 . 422 . 620 . 637 . 381 . 373 . 498 . 524 . 336 . 452 365 229 Lost Part 833 | . 10 10 23 . 10 80 10 40 10 10 . 30 40 10 . 40 59 110 20 120 10 23 168 Lost Ally 1185 | . . . . . 20 20 . 20 41 40 40 60 . 80 70 160 40 179 141 80 160 14 20 Purge Threat 900 | . . . 150 . 150 . . . . . 150 . . . . . 300 . . . . 150 . Squads Dispatched 55 | . 4 . 1 . 1 . 3 . 10 . 4 . 4 . 4 . 6 . 3 . 4 5 6 Investigation 3 | . 2 . . . . . . . . . . . . . 1 . . . . . . . . Extermination 27 | . . . . . . . 2 . 6 . 2 . 3 . 2 . 4 . 2 . 2 2 2 Reinforcement 18 | . 2 . 1 . 1 . 1 . 3 . . . 1 . 1 . 2 . 1 . 1 2 2 Assault 4 | . . . . . . . . . . . 2 . . . . . . . . . . . 2 Garrison 3 | . . . . . . . . . 1 . . . . . . . . . . . 1 1 . Intercept . | . . . . . . . . . . . . . . . . . . . . . . . . Searches Triggered . | . . . . . . . . . . . . . . . . . . . . . . . . Construction Impeded 1 | . . . . . . . . . . . . . . . . . . . . . . 1 . Haulers Reinforced 4 | . . . . . . . 1 . . . . . 1 . . . . . . . 1 1 . Active Scanning Responses . | . . . . . . . . . . . . . . . . . . . . . . . . Cargo Convoy Interrupts 1 | . . . . . . . . . 1 . . . . . . . . . . . . . . Alert ID Control Effect 33 | . . . . . . . . . . . . 2 . . 1 2 3 12 5 2 5 1 . Stealth | -11 -10 -10 -8 -8 -8 -8 -7 -7 -7 -7 -6 -6 -6 -6 -5 -5 -4 -4 -3 -3 -3 -3 -2 --------- Run | Yrd Mat Sub Mat Gar Mat Gar Fac Gar Fac Gar Fac Gar Fac Gar Fac Gar Fac Gar Res Gar Res Qua Res Distress Signals 25 | . 3 . 5 1 1 . 3 . 3 . . . . 2 . 1 . . 2 . 3 1 . Communications Jammed 3 | . . . . . . . . . 3 . . . . . . . . . . . . . . Distress Signals 3 | . . . . . . . . . 3 . . . . . . . . . . . . . . Times Spotted 627 | . 30 8 38 28 24 37 24 36 29 34 15 33 17 24 12 44 30 34 26 22 30 30 22 Peak Tracking Total 8 | . 4 2 5 4 3 7 3 8 3 6 4 4 3 6 2 6 4 7 5 4 4 5 7 Tactical Retreats 32 | . 1 . 1 1 . 2 2 . 3 1 . 3 1 3 . 3 1 2 1 2 . . 5 Traps | -11 -10 -10 -8 -8 -8 -8 -7 -7 -7 -7 -6 -6 -6 -6 -5 -5 -4 -4 -3 -3 -3 -3 -2 ------- Run | Yrd Mat Sub Mat Gar Mat Gar Fac Gar Fac Gar Fac Gar Fac Gar Fac Gar Fac Gar Res Gar Res Qua Res Traps Triggered 55 | . 2 3 . 2 2 . . 2 2 8 2 7 3 1 1 6 . 3 3 4 3 . 1 Indirectly . | . . . . . . . . . . . . . . . . . . . . . . . . Trap Hack Attempts . | . . . . . . . . . . . . . . . . . . . . . . . . Triggered . | . . . . . . . . . . . . . . . . . . . . . . . . Disarmed . | . . . . . . . . . . . . . . . . . . . . . . . . Reprogrammed . | . . . . . . . . . . . . . . . . . . . . . . . . Reused 2 | . . . . . . . . 1 . 1 . . . . . . . . . . . . . Traps Extracted . | . . . . . . . . . . . . . . . . . . . . . . . . Installed 3 | . . . . . . . . 1 . 1 . 1 . . . . . . . . . . . Triggered 2 | . . . . . . . . 1 . 1 . . . . . . . . . . . . . Most Traps Carried 4 | . . . . 4 4 4 4 4 3 3 2 2 1 1 1 1 1 1 1 1 1 . . Machines | -11 -10 -10 -8 -8 -8 -8 -7 -7 -7 -7 -6 -6 -6 -6 -5 -5 -4 -4 -3 -3 -3 -3 -2 ---------- Run | Yrd Mat Sub Mat Gar Mat Gar Fac Gar Fac Gar Fac Gar Fac Gar Fac Gar Fac Gar Res Gar Res Qua Res Machines Disabled 82 | . . 1 1 3 1 . 3 2 1 2 1 3 5 4 14 8 4 8 . 5 6 8 2 Max in Single Turn 14 | . . 1 1 2 1 . 2 1 1 1 . 1 3 1 14 1 2 1 . 1 2 1 1 Garrison Access 8 | . . . . . . . 1 . . . 1 . 1 . 1 . 1 . . . 2 . 1 Garrison Relay 18 | . . . . . . . . 2 . 2 . 2 . 2 . 4 . 5 . 1 . . . Phase Generator 2 | . . . . 1 . . . . . . . . . . . 1 . . . . . . . Machines Repaired . | . . . . . . . . . . . . . . . . . . . . . . . . Machines Dismantled . | . . . . . . . . . . . . . . . . . . . . . . . . Machines Sabotaged . | . . . . . . . . . . . . . . . . . . . . . . . . Overloaded Fab Kills . | . . . . . . . . . . . . . . . . . . . . . . . . Hacking | -11 -10 -10 -8 -8 -8 -8 -7 -7 -7 -7 -6 -6 -6 -6 -5 -5 -4 -4 -3 -3 -3 -3 -2 --------- Run | Yrd Mat Sub Mat Gar Mat Gar Fac Gar Fac Gar Fac Gar Fac Gar Fac Gar Fac Gar Res Gar Res Qua Res Machines Accessed 114 | . 5 1 9 4 4 2 11 2 17 2 6 4 5 2 4 2 13 3 2 1 6 6 3 Terminals 73 | . 4 . 6 4 3 2 4 2 9 2 3 4 2 2 1 2 8 3 1 1 4 4 2 Fabricators 7 | . . . . . . . 1 . 2 . 1 . . . 1 . 2 . . . . . . Repair Stations 12 | . . . 2 . . . 3 . 4 . . . 1 . . . 1 . . . . . 1 Recycling Units 3 | . 1 . . . . . . . 1 . 1 . . . . . . . . . . . . Scanalyzers 2 | . . . . . . . 1 . . . . . . . . . . . . . . 1 . Garrison Access 16 | . . . 1 . 1 . 2 . 1 . 1 . 2 . 2 . 2 . 1 . 2 1 . Total Hacks 239 | . 11 1 28 10 7 4 26 4 42 3 10 6 10 2 10 4 28 5 3 1 8 10 6 Successful 109 | . 4 1 18 1 2 2 13 2 20 1 5 1 6 2 5 1 11 1 2 1 4 5 1 Failed 130 | . 7 . 10 9 5 2 13 2 22 2 5 5 4 . 5 3 17 4 1 . 4 5 5 Catastrophic 30 | . . . 1 2 2 1 3 1 5 . 2 1 2 . . 1 3 1 . . 2 2 1 Database Lockouts . | . . . . . . . . . . . . . . . . . . . . . . . . Manual 77 | . 10 . 16 . 4 . 5 . 17 . 3 . 1 . 6 . 5 . . . . 5 5 Terminals 153 | . 10 . 21 10 6 4 6 4 21 3 4 6 5 2 4 4 17 5 2 1 6 7 5 Fabricators 12 | . . . . . . . 1 . 4 . 3 . . . 1 . 3 . . . . . . Repair Stations 35 | . . . 6 . . . 10 . 11 . . . 3 . . . 4 . . . . . 1 Recycling Units 8 | . 1 . . . . . . . 5 . 2 . . . . . . . . . . . . Scanalyzers 8 | . . . . . . . 6 . . . . . . . . . . . . . . 2 . Garrison Access 22 | . . . 1 . 1 . 3 . 1 . 1 . 2 . 5 . 4 . 1 . 2 1 . Terminal Hacks 37 | . . 1 6 1 1 2 . 2 4 1 1 1 1 2 1 1 4 1 1 1 2 2 1 Record 1 | . . . . . . . . . . . . . . . . . . . . . . 1 . Part Schematic 1 | . . . . . . . . . . . . . . . . . . . . . . . 1 Prototype ID Bank 1 | . . . 1 . . . . . . . . . . . . . . . . . . . . Open Door 3 | . . . . . . 1 . 1 . . . . . . . . . . . . 1 . . Branch Access Points 1 | . . . 1 . . . . . . . . . . . . . . . . . . . . Emergency Access Points 3 | . . . . . . . . . . . . . . 1 . 1 . . . 1 . . . Terminal Index 1 | . . . . . . . . . . . . . . . . . 1 . . . . . . Repair Station Index 1 | . . . . . . . . . . . . . 1 . . . . . . . . . . Unreport Threat 6 | . . . 1 . 1 . . . . . 1 . . . . . 2 . . . . 1 . Locate Traps 8 | . . . 2 . . . . . 3 . . . . . . . 1 . 1 . 1 . . Hauler Manifests 2 | . . . . . . . . . 1 . . . . . 1 . . . . . . . . Zone Layout 1 | . . . 1 . . . . . . . . . . . . . . . . . . . . Garrison Registry 3 | . . . . . . 1 . . . 1 . . . 1 . . . . . . . . . Patrol Navigation 2 | . . . . 1 . . . . . . . 1 . . . . . . . . . . . Security Stations 2 | . . . . . . . . 1 . . . . . . . . . 1 . . . . . Proto ID Catalog 1 | . . 1 . . . . . . . . . . . . . . . . . . . . . Fabricator Hacks 5 | . . . . . . . . . 1 . 2 . . . . . 2 . . . . . . Network Status 3 | . . . . . . . . . 1 . 1 . . . . . 1 . . . . . . Build 2 | . . . . . . . . . . . 1 . . . . . 1 . . . . . . Repair Station Hacks 22 | . . . 5 . . . 7 . 7 . . . 2 . . . 1 . . . . . . Scan Component 13 | . . . 3 . . . 4 . 4 . . . 1 . . . 1 . . . . . . Repair 9 | . . . 2 . . . 3 . 3 . . . 1 . . . . . . . . . . Recycling Unit Hacks 5 | . 1 . . . . . . . 3 . 1 . . . . . . . . . . . . Retrieve Matter 2 | . . . . . . . . . 2 . . . . . . . . . . . . . . Retrieve Components 3 | . 1 . . . . . . . 1 . 1 . . . . . . . . . . . . Scanalyzer 3 | . . . . . . . 2 . . . . . . . . . . . . . . 1 . Insert Component 2 | . . . . . . . 1 . . . . . . . . . . . . . . 1 . Analyze 1 | . . . . . . . 1 . . . . . . . . . . . . . . . . Garrison Access Hacks 15 | . . . 1 . 1 . 2 . 1 . 1 . 2 . 2 . 2 . 1 . 2 . . Unlock Access 9 | . . . 1 . 1 . 1 . 1 . 1 . 1 . 1 . 1 . 1 . . . . Seal Access 6 | . . . . . . . 1 . . . . . 1 . 1 . 1 . . . 2 . . Unauthorized Hacks 22 | . 3 . 6 . . . 2 . 4 . . . 1 . 2 . 2 . . . . 2 . Terminals 16 | . 3 . 6 . . . 1 . 3 . . . 1 . . . 1 . . . . 1 . Botnet 7 | . . . 1 . . . 1 . 3 . . . 1 . . . . . . . . 1 . Disrupt 1 | . . . . . . . . . . . . . . . . . 1 . . . . . . Skim 8 | . 3 . 5 . . . . . . . . . . . . . . . . . . . . Fabricators 2 | . . . . . . . . . 1 . . . . . 1 . . . . . . . . Liberate 2 | . . . . . . . . . 1 . . . . . 1 . . . . . . . . Repair Stations . | . . . . . . . . . . . . . . . . . . . . . . . . Recycling Units . | . . . . . . . . . . . . . . . . . . . . . . . . Scanalyzers . | . . . . . . . . . . . . . . . . . . . . . . . . Garrison Access 4 | . . . . . . . 1 . . . . . . . 1 . 1 . . . . 1 . Decoy 3 | . . . . . . . . . . . . . . . 1 . 1 . . . . 1 . Intercept 1 | . . . . . . . 1 . . . . . . . . . . . . . . . . Data Cores Recovered 1 | . . . . . . . . . . . . . . . . . 1 . . . . . . Used 1 | . . . . . . . . . . . . . . . . . 1 . . . . . . Hacking Detections 91 | . 4 . 8 3 4 2 10 1 14 2 5 3 3 1 2 2 12 2 2 1 3 4 3 Full Trace Events 1 | . . . . . . . . . . . . . . . . 1 . . . . . . . Feedback Events . | . . . . . . . . . . . . . . . . . . . . . . . . Feedback Blocked . | . . . . . . . . . . . . . . . . . . . . . . . . Robot Schematics Acquired . | . . . . . . . . . . . . . . . . . . . . . . . . Robots Built . | . . . . . . . . . . . . . . . . . . . . . . . . Authchips . | . . . . . . . . . . . . . . . . . . . . . . . . Time . | . . . . . . . . . . . . . . . . . . . . . . . . Total Robot Build Rating . | . . . . . . . . . . . . . . . . . . . . . . . . Part Schematics Acquired 1 | . . . . . . . . . . . . . . . . . . . . . . . 1 Parts Built 2 | . . . . . . . . . . . 1 . . . . . 1 . . . . . . Authchips . | . . . . . . . . . . . . . . . . . . . . . . . . Time 197 | . . . . . . . . . . . 128 . . . . . 69 . . . . . . Total Part Build Rating 17 | . . . . . . . . . . . 8 . . . . . 9 . . . . . . Parts Repaired 9 | . . . 2 . . . 3 . 3 . . . 1 . . . . . . . . . . Time 348 | . . . 77 . . . 107 . 136 . . . 28 . . . . . . . . . . Parts Recycled . | . . . . . . . . . . . . . . . . . . . . . . . . Recycled Matter . | . . . . . . . . . . . . . . . . . . . . . . . . Retrieved Matter . | . . . . . . . . . . . . . . . . . . . . . . . . Retrieved Components 23 | . 9 . . . . . . . 9 . 5 . . . . . . . . . . . . Parts Scanalyzed 1 | . . . . . . . 1 . . . . . . . . . . . . . . . . Part Schematics Acquired . | . . . . . . . . . . . . . . . . . . . . . . . . Parts Damaged . | . . . . . . . . . . . . . . . . . . . . . . . . Bothacking | -11 -10 -10 -8 -8 -8 -8 -7 -7 -7 -7 -6 -6 -6 -6 -5 -5 -4 -4 -3 -3 -3 -3 -2 ------------ Run | Yrd Mat Sub Mat Gar Mat Gar Fac Gar Fac Gar Fac Gar Fac Gar Fac Gar Fac Gar Res Gar Res Qua Res Used RIF Installer 11 | . . . . 1 . 2 . 1 . 2 . 1 . 1 . 1 . 1 . 1 . . . Threat Obfuscator 2 | . . . . . . 1 . 1 . . . . . . . . . . . . . . . Robot Detection 1 | . . . . . . . . . . . . . . 1 . . . . . . . . . Watcher Feeds 1 | . . . . . . . . . . 1 . . . . . . . . . . . . . Patrol Navigation 1 | . . . . . . . . . . . . 1 . . . . . . . . . . . Alert ID Control 1 | . . . . . . . . . . 1 . . . . . . . . . . . . . Structural Interface 1 | . . . . . . 1 . . . . . . . . . . . . . . . . . Autooverride 2 | . . . . . . . . . . . . . . . . . . 1 . 1 . . . Autoassimilate 1 | . . . . . . . . . . . . . . . . 1 . . . . . . . Robots Hacked 125 | . . . . . . . . . 5 5 5 7 8 5 3 10 12 15 15 6 20 7 2 Non-combat 27 | . . . . . . . . . 3 . 2 . 6 1 2 . 4 . 3 1 3 2 . Combat 98 | . . . . . . . . . 2 5 3 7 2 4 1 10 8 15 12 5 17 5 2 Autooverrided 19 | . . . . . . . . . . . . . . . . . . 1 2 3 10 2 1 Autoassimilated 24 | . . . . . . . . . . . . . . . . 4 4 4 5 2 3 2 . Robot Hacks Applied 97 | . . . . . . . . . 8 5 6 7 10 8 5 6 8 11 8 3 8 3 1 parse_system 4 | . . . . . . . . . 1 . . . . 1 . . . 1 . 1 . . . no_distress 2 | . . . . . . . . . . . . . . . 1 . . . . . . 1 . find_chute 1 | . . . . . . . . . . . . . . . 1 . . . . . . . . map_walls 1 | . . . . . . . . . . . . . . . . . . . 1 . . . . find_fabricator 3 | . . . . . . . . . 1 . . . 1 . 1 . . . . . . . . drop_inventory 11 | . . . . . . . . . 2 . 1 . 3 . 1 . 1 . 1 . 2 . . locate_stockpiles 1 | . . . . . . . . . 1 . . . . . . . . . . . . . . find_recycling 1 | . . . . . . . . . 1 . . . . . . . . . . . . . . ignore_parts 6 | . . . . . . . . . . . . . 4 . . . 2 . . . . . . block_reporting 2 | . . . . . . . . . . . . . . . . . . . 1 . . 1 . map_route 1 | . . . . . . . . . . . . . . . . . . . . . 1 . . mark_security 3 | . . . . . . . . . . . 1 . . . . . 1 . . 1 . . . find_garrison 1 | . . . . . . . . . . . 1 . . . . . . . . . . . . scatter_targeting 2 | . . . . . . . . . . 1 1 . . . . . . . . . . . . overload_power 1 | . . . . . . . . . . . . . . . . . . . . 1 . . . wipe_record 2 | . . . . . . . . . . 1 . . . 1 . . . . . . . . . disable_weapons 20 | . . . . . . . . . 2 1 2 3 1 3 . 2 2 2 2 . . . . overwrite_iff 22 | . . . . . . . . . . 1 . 4 1 2 1 3 2 3 2 . 2 1 . streamctrl_high 1 | . . . . . . . . . . . . . . . . . . . . . . . 1 formatsys_low 1 | . . . . . . . . . . . . . . 1 . . . . . . . . . formatsys_high 11 | . . . . . . . . . . 1 . . . . . 1 . 5 1 . 3 . . Relay Couplers Released 91 | . . . . . . . . 12 . 8 1 9 . 7 . 17 . 26 . 5 . 4 2 Machine Destruction 80 | . . . . . . . . 9 . 8 1 9 . 7 . 17 . 22 . 5 . . 2 Programmers 11 | . . . . . . . . 3 . . . . . . . . . 4 . . . 4 . Attached 37 | . . . . . . . . . 2 2 2 4 . 1 . 8 1 10 2 4 1 . . Fabnet Peak Effective % . | . . . . . . . . . . . . . . . . . . . . . . . . Robots Rewired 30 | . . . . 2 . . . . 1 4 . 2 . 3 . 8 . 5 . 5 . . . Allies Hacked 4 | . . . . . . . . . 1 . . . . . . . . 1 . 2 . . . Hacks Repelled . | . . . . . . . . . . . . . . . . . . . . . . . . Allies | -11 -10 -10 -8 -8 -8 -8 -7 -7 -7 -7 -6 -6 -6 -6 -5 -5 -4 -4 -3 -3 -3 -3 -2 -------- Run | Yrd Mat Sub Mat Gar Mat Gar Fac Gar Fac Gar Fac Gar Fac Gar Fac Gar Fac Gar Res Gar Res Qua Res Total Allies 128 | . . . . 2 . 1 . 2 3 6 . 6 13 8 4 16 6 17 10 10 17 5 2 Largest Group 7 | . . . . 2 1 1 . 2 2 3 3 2 4 3 6 6 2 7 6 5 7 2 2 Highest-Rated Group 468 | . . . . 40 21 25 . 62 64 63 63 61 113 207 185 140 107 328 293 468 340 94 132 Highest-Rated Ally 148 | . . . . 24 21 25 . 31 32 32 21 32 31 148 43 49 56 56 64 148 148 47 69 Total Orders 25 | . . . . . . . . . . 8 . 1 . 1 . 1 2 1 4 5 2 . . STAY 13 | . . . . . . . . . . 4 . 1 . . . 1 1 1 2 2 1 . . ROAM 1 | . . . . . . . . . . . . . . . . . . . . 1 . . . FOLLOW 9 | . . . . . . . . . . 4 . . . . . . 1 . 1 2 1 . . AID 1 | . . . . . . . . . . . . . . 1 . . . . . . . . . EXPLORE 1 | . . . . . . . . . . . . . . . . . . . 1 . . . . Ally Attacks 577 | . . . . 23 3 4 . 24 9 16 6 30 3 25 33 40 42 69 62 88 86 6 8 Total Damage 17343 | . . . . 461 15 118 . 373 169 386 129 463 38 768 625 1122 1549 1794 1787 4737 2539 78 192 Kills 100 | . . . . 8 . 2 . 4 1 5 . 2 . 8 3 8 4 14 6 25 9 1 . Allies Corrupted 7 | . . . . . . . . . . 1 . . . . . 1 . 1 3 . 1 . . Allies Melted 2 | . . . . . . . . . . . . . . 1 . 1 . . . . . . . Intel | -11 -10 -10 -8 -8 -8 -8 -7 -7 -7 -7 -6 -6 -6 -6 -5 -5 -4 -4 -3 -3 -3 -3 -2 ------- Run | Yrd Mat Sub Mat Gar Mat Gar Fac Gar Fac Gar Fac Gar Fac Gar Fac Gar Fac Gar Res Gar Res Qua Res Active Infowar (turns) 27699 | 20 903 90 669 . . . 2092 1222 3303 1954 1081 1505 1154 1076 1297 . 1839 2361 958 2890 1138 1204 943 Optics 22491 | . . . . . . . 2092 1222 3303 1954 1081 1505 430 . . . 1839 2361 958 2890 1138 1204 514 Sensors 2758 | . . . . . . . 740 . . . . . 721 . 1297 . . . . . . . . IFF 190 | . . . . . . . . . . . . . 190 . . . . . . . . . . Seismic 7798 | 20 903 90 669 . . . 1046 88 2610 659 411 227 . 1075 . . . . . . . . . T.N.C. 2 | . . . . . . . 2 . . . . . . . . . . . . . . . . Cloaking 6 | . . . . . . . . . . . . . . . . . . . . . . . 6 Spoofing 1 | . . . . . . . . . . . . . . 1 . . . . . . . . . Jamming 17 | . . . . . . . . . 17 . . . . . . . . . . . . . . ECM 429 | . . . . . . . . . . . . . . . . . . . . . . . 429 Robot Analysis Total . | . . . . . . . . . . . . . . . . . . . . . . . . Derelict Logs Recovered . | . . . . . . . . . . . . . . . . . . . . . . . . Drone Launches 1 | . . . . . . . . . . . . . . . . . . . 1 . . . . Drone Recoveries 1 | . . . . . . . . . . . . . . . . . . . 1 . . . . Exploration | -11 -10 -10 -8 -8 -8 -8 -7 -7 -7 -7 -6 -6 -6 -6 -5 -5 -4 -4 -3 -3 -3 -3 -2 ------------- Run | Yrd Mat Sub Mat Gar Mat Gar Fac Gar Fac Gar Fac Gar Fac Gar Fac Gar Fac Gar Res Gar Res Qua Res Turns Passed 36817 | 111 1969 891 2073 1297 1030 982 2093 1222 3303 1954 1081 1505 1303 1490 1329 1779 1876 2361 958 2890 1138 1204 978 Spaces Moved 20150 | 56 897 544 1038 702 612 520 1295 763 2007 1131 645 801 681 753 745 963 973 1114 418 1486 728 622 656 Core 130 | 8 11 . . . . . . . . . . . . . . . . . . . . . 111 Treads 6957 | 48 886 274 812 702 30 . . . . . . 11 . 1 . 398 973 1114 418 1290 . . . Legs 4910 | . . . . . 582 520 1295 422 . . . . . . . . . . . 196 728 622 545 Wheels 8153 | . . 270 226 . . . . 341 2007 1131 645 790 681 752 745 565 . . . . . . . Hover . | . . . . . . . . . . . . . . . . . . . . . . . . Flight . | . . . . . . . . . . . . . . . . . . . . . . . . Fastest Speed 50 | 50 160 115 105 155 130 130 130 115 130 130 130 130 145 130 130 145 152 162 160 126 116 116 50 Average Speed 144 | 146 172 145 144 155 131 136 130 129 130 140 143 142 145 142 143 150 153 175 175 166 123 135 110 Slowest Speed 480 | 160 250 160 240 155 270 200 130 130 130 145 145 240 145 400 145 480 165 270 240 240 126 260 180 Overloaded Moves . | . . . . . . . . . . . . . . . . . . . . . . . . Propulsion Burnouts . | . . . . . . . . . . . . . . . . . . . . . . . . Robots Hopped . | . . . . . . . . . . . . . . . . . . . . . . . . Potential Cave-ins 2 | . . . . . . . . . . . . . . . . . . . . . . . 2 Cave-ins Triggered . | . . . . . . . . . . . . . . . . . . . . . . . . Exploration Rate (%) 56 | 5 97 45 70 88 57 57 37 87 47 69 23 95 29 72 22 89 26 90 18 88 33 79 27 Regions Visited 23 Branch Regions 2 Pre-discovered Areas . | . . . . . . . . . . . . . . . . . . . . . . . . Known Exits Taken 9 | . . . 1 . 1 . 1 . 1 . 1 . 1 . 1 . 1 . 1 . . . . Unknown Exits Taken 5 | 1 1 1 . . . . . . . . . . . . . . . . . . 1 1 . Scrap Searched . | . . . . . . . . . . . . . . . . . . . . . . . . Spaces Dug 132 | . . . 6 3 . . 15 . 36 . 3 . 7 4 10 15 13 . 3 5 7 1 4 Terrain Destroyed 971 | . 42 103 28 117 6 . 24 18 36 40 38 31 39 10 60 54 61 25 15 18 51 42 113 Melee 80 | . . . 6 3 . . 15 . 36 . 3 . 7 . . . . . . . 5 1 4 Projectile 289 | . . . . . . . . . . . . . 2 4 22 12 41 . 15 18 25 41 109 AOE 602 | . 42 103 22 114 6 . 9 18 . 40 35 31 30 6 38 42 20 25 . . 21 . . Terrain Rammed . | . . . . . . . . . . . . . . . . . . . . . . . . Walls Destroyed . | . . . . . . . . . . . . . . . . . . . . . . . . Machines Disabled . | . . . . . . . . . . . . . . . . . . . . . . . . Actions | -11 -10 -10 -8 -8 -8 -8 -7 -7 -7 -7 -6 -6 -6 -6 -5 -5 -4 -4 -3 -3 -3 -3 -2 --------- Run | Yrd Mat Sub Mat Gar Mat Gar Fac Gar Fac Gar Fac Gar Fac Gar Fac Gar Fac Gar Res Gar Res Qua Res Total 25387 | 78 1194 605 1417 825 726 666 1590 879 2504 1350 741 1008 913 1085 940 1276 1236 1401 588 1802 891 865 807 Wait 2336 | . 167 19 184 18 37 54 165 23 281 51 32 25 126 228 126 128 95 119 95 143 68 127 25 Move 20136 | 56 896 543 1038 701 612 519 1295 761 2007 1130 645 800 681 752 745 962 973 1113 418 1485 727 621 656 Hop . | . . . . . . . . . . . . . . . . . . . . . . . . Pick Up 266 | 11 22 3 26 3 4 11 12 10 17 13 1 13 11 9 7 10 16 18 7 22 6 7 7 Fast Attach 131 | 3 . . 4 . 2 6 8 1 6 2 1 3 1 6 3 3 12 8 4 13 9 11 25 Attach 123 | 4 1 5 8 . 1 7 2 4 3 3 2 9 4 3 5 5 18 11 3 9 2 3 11 Detach 37 | . . . 1 . . . 3 . 3 . 1 3 . 1 2 3 6 4 1 1 . 2 6 Swap 437 | . 14 4 29 18 12 11 37 15 63 31 22 25 28 17 6 20 9 18 10 28 9 5 6 Drop 270 | . 14 2 27 9 8 4 18 5 22 14 3 10 10 9 8 10 16 9 6 30 17 13 6 Fire 1280 | 2 76 23 87 35 50 51 31 47 58 84 28 75 44 60 38 118 86 84 44 56 48 23 32 Melee 243 | . . 6 11 8 . 3 19 4 44 . 6 12 8 . . . 4 17 . 10 5 53 33 Ram . | . . . . . . . . . . . . . . . . . . . . . . . . Kick . | . . . . . . . . . . . . . . . . . . . . . . . . Crush 9 | 2 4 . 2 . . . . . . . . . . . . . 1 . . . . . . Escape Stasis 80 | . . . . . . . . 8 . 20 . 32 . . . 16 . . . 4 . . . Rewire 36 | . . . . 33 . . . . . 1 . . . . . 1 . . . 1 . . . Trap 3 | . . . . . . . . 1 . 1 . 1 . . . . . . . . . . . Miscellaneous . | . . . . . . . . . . . . . . . . . . . . . . . . Route ------- -11/Scrapyard -10/Materials (discovered 6 exits: [*Mat x3] / [*Min x2] / *Sub) -10/Subcaves -8/Materials (discovered 3 exits: *Fac x2 / Gar) -8/Garrison (discovered 3 exits: *Mat x3) -8/Materials (discovered 3 exits: *Fac x2 / Gar) -8/Garrison (discovered 3 exits: *Fac x3) -7/Factory (discovered 4 exits: *Fac x2 / *Low / Gar) -7/Garrison (discovered 3 exits: *Fac x3) -7/Factory (discovered 4 exits: *Fac x2 / *Low / Gar) -7/Garrison (discovered 3 exits: *Fac x3) -6/Factory (discovered 3 exits: *Fac / [*Low] / Gar) -6/Garrison (discovered 4 exits: *Fac x4) -6/Factory (discovered 3 exits: *Fac / [*Low] / Gar) -6/Garrison (discovered 3 exits: *Fac x3) -5/Factory -5/Garrison (discovered 3 exits: *Fac x3) -4/Factory (discovered 4 exits: *Res x2 / [*Upp] / Gar) -4/Garrison (discovered 3 exits: *Res x3) -3/Research -3/Garrison (discovered 4 exits: *Res x4) -3/Research -3/Quarantine -2/Research History --------- Turn | Location | Event 30 | -11/Scrapyard | Discovered new exit (range 16) 112 | -11/Scrapyard | Entered Materials 316 | -10/Materials | Build established: Mutant 516 | -10/Materials | Discovered new exit (range 16) 586 | -10/Materials | Discovered new exit (range 7) 785 | -10/Materials | Discovered new exit (range 10) 1177 | -10/Materials | Discovered new exit (range 15) 1741 | -10/Materials | Core integrity fell below 50% 1881 | -10/Materials | Discovered new exit (range 7) 2060 | -10/Materials | Discovered new exit (range 9) 2081 | -10/Materials | Entered Subcaves 2137 | -10/Subcaves | A swath of the cavern ceiling suddenly collapsed 2506 | -10/Subcaves | Visited 4L-MR0's lab 2523 | -10/Subcaves | Found Powered Cannon 2620 | -10/Subcaves | Core integrity fell below 20% 2747 | -10/Subcaves | Discovered new exit (range 7) 2972 | -10/Subcaves | Entered Materials 2972 | -8/Materials | Evolved 4 slots: Propulsion x1, Utility x2, Weapon x1 3563 | -8/Materials | Build established: Scavenger-Mutant 3969 | -8/Materials | Repaired Lgt. Treads 4293 | -8/Materials | Discovered new exit (range 16) 4423 | -8/Materials | Build established: Tank 4551 | -8/Materials | Discovered new exit (range 16) 4653 | -8/Materials | Repaired Hvy. Ion Engine 4966 | -8/Materials | Build established: Mutant 5045 | -8/Materials | Identified exit to Garrison 5045 | -8/Materials | Entered Garrison 5219 | -8/Garrison | Triggered checkpoint 5336 | -8/Garrison | Discovered new exit (range 5) 5353 | -8/Garrison | Phase Generator disabled 5491 | -8/Garrison | Triggered checkpoint 5531 | -8/Garrison | Triggered checkpoint 5788 | -8/Garrison | Discovered new exit (range 5) 5824 | -8/Garrison | Triggered checkpoint 5858 | -8/Garrison | Installed Relay Interface Framework 5887 | -8/Garrison | Build established: Tank 5923 | -8/Garrison | Triggered checkpoint 6053 | -8/Garrison | Discovered new exit (range 13) 6139 | -8/Garrison | Triggered checkpoint 6342 | -8/Garrison | Entered Materials 6342 | -8/Materials | Accompanied by 1 ally 6726 | -8/Materials | Discovered new exit (range 13) 7109 | -8/Materials | Discovered new exit (range 15) 7372 | -8/Materials | Identified exit to Garrison 7372 | -8/Materials | Entered Garrison 7391 | -8/Garrison | Discovered new exit (range 59) 7391 | -8/Garrison | Discovered new exit (range 56) 7391 | -8/Garrison | Discovered new exit (range 76) 7472 | -8/Garrison | Rescued a captive Derelict 7486 | -8/Garrison | Triggered checkpoint 7669 | -8/Garrison | Lost 5 parts (1n3u1w) 7671 | -8/Garrison | Destroyed 7 combat bots 7700 | -8/Garrison | Triggered checkpoint 7826 | -8/Garrison | Triggered checkpoint 7827 | -8/Garrison | Core integrity fell below 50% 7945 | -8/Garrison | Expanded RIF knowledge: Structural Interface 8221 | -8/Garrison | Expanded RIF knowledge: Threat Obfuscation 8353 | -8/Garrison | Identified exit to Factory 8354 | -8/Garrison | Entered Factory 8354 | -7/Factory | Evolved 2 slots: Utility x2 8389 | -7/Factory | Found Prototype Launcher 8417 | -7/Factory | Identified Rocket Array 8487 | -7/Factory | Discovered new exit (range 4) 8491 | -7/Factory | Identified exit to Lower Caves 9237 | -7/Factory | Repaired Lgt. Antimatter Reactor 9291 | -7/Factory | Discovered new exit (range 19) 9354 | -7/Factory | Build established: Skirmisher 9469 | -7/Factory | Repaired Titanium Leg 9508 | -7/Factory | Repaired Imp. Light Armor Plating 9715 | -7/Factory | Build established: Mutant 9784 | -7/Factory | Discovered new exit (range 6) 10447 | -7/Factory | Identified exit to Garrison 10447 | -7/Factory | Entered Garrison 10589 | -7/Garrison | Triggered checkpoint 10602 | -7/Garrison | Triggered checkpoint 10699 | -7/Garrison | Triggered checkpoint 10704 | -7/Garrison | Garrison Relay disabled 10722 | -7/Garrison | Discovered new exit (range 13) 10830 | -7/Garrison | Build established: Tank 11007 | -7/Garrison | Triggered checkpoint 11047 | -7/Garrison | Garrison Relay disabled 11078 | -7/Garrison | Rescued a captive Derelict 11079 | -7/Garrison | Rescued a captive Derelict 11100 | -7/Garrison | Expanded RIF knowledge: Threat Obfuscation 11197 | -7/Garrison | Triggered checkpoint 11321 | -7/Garrison | Triggered checkpoint 11351 | -7/Garrison | Discovered new exit (range 10) 11359 | -7/Garrison | Triggered checkpoint 11399 | -7/Garrison | Learned Factory security intel 11541 | -7/Garrison | Triggered checkpoint 11567 | -7/Garrison | Build established: Bothacker-Tank 11635 | -7/Garrison | Lost 3 parts (1p1u1w) 11655 | -7/Garrison | Discovered new exit (range 11) 11669 | -7/Garrison | Entered Factory 12023 | -7/Factory | Repaired Prc. Assault Rifle 12182 | -7/Factory | Garrison activated, responded to threat 12199 | -7/Factory | Discovered new exit (range 17) 12388 | -7/Factory | Allied Derelicts emerged from ambush trap array 12406 | -7/Factory | Discovered new exit (range 7) 12490 | -7/Factory | Lost 3 allies 12506 | -7/Factory | Build established: Tank 12588 | -7/Factory | Repaired Arm. Huge Wheel 12670 | -7/Factory | Repaired Imp. Deuterium Engine 12931 | -7/Factory | Discovered exit to Lower Caves (range 5) 12943 | -7/Factory | Cargo convoy interrupted 13140 | -7/Factory | Found Rocket Array 13846 | -7/Factory | Build established: Mutant 14972 | -7/Factory | Identified exit to Garrison 14972 | -7/Factory | Entered Garrison 15220 | -7/Garrison | Build established: Tank 15346 | -7/Garrison | Triggered checkpoint 15490 | -7/Garrison | Expanded RIF knowledge: Watcher Feeds 15554 | -7/Garrison | Triggered checkpoint 15672 | -7/Garrison | Expanded RIF knowledge: Alert ID Control 15770 | -7/Garrison | Triggered checkpoint 15956 | -7/Garrison | Triggered checkpoint 16208 | -7/Garrison | Build established: Bothacker-Tank 16268 | -7/Garrison | Discovered new exit (range 15) 16486 | -7/Garrison | Triggered checkpoint 16566 | -7/Garrison | Garrison Relay disabled 16605 | -7/Garrison | Discovered new exit (range 19) 16634 | -7/Garrison | Discovered new exit (range 75) 16634 | -7/Garrison | Discovered new exit (range 7) 16634 | -7/Garrison | Discovered new exit (range 51) 16724 | -7/Garrison | Spotted B-75 Beast 16752 | -7/Garrison | Triggered checkpoint 16926 | -7/Garrison | Entered Factory 16926 | -6/Factory | Accompanied by 3 allies 16926 | -6/Factory | Evolved 2 slots: Utility x2 17322 | -6/Factory | Fabricated Antigrav Array? 17370 | -6/Factory | Discovered new exit (range 19) 17620 | -6/Factory | Build established: Bothacker-Mutant 17973 | -6/Factory | Discovered new exit (range 6) 18007 | -6/Factory | Identified exit to Garrison 18007 | -6/Factory | Entered Garrison 18035 | -6/Garrison | Expanded RIF knowledge: Patrol Navigation 18091 | -6/Garrison | Triggered checkpoint 18127 | -6/Garrison | Discovered new exit (range 6) 18205 | -6/Garrison | Triggered checkpoint 18261 | -6/Garrison | Garrison Relay disabled 18327 | -6/Garrison | Build established: Botlord-Tank 18435 | -6/Garrison | Triggered checkpoint 18451 | -6/Garrison | Triggered checkpoint 18527 | -6/Garrison | Destroyed 7 combat bots 18594 | -6/Garrison | Spotted B-75 Beast 18641 | -6/Garrison | Destroyed B-75 Beast 18703 | -6/Garrison | Found Heavy Servo Lattice 18805 | -6/Garrison | Discovered new exit (range 10) 18901 | -6/Garrison | Triggered checkpoint 19002 | -6/Garrison | Garrison Relay disabled 19155 | -6/Garrison | Triggered checkpoint 19235 | -6/Garrison | Discovered new exit (range 10) 19323 | -6/Garrison | Spotted Executioner 19323 | -6/Garrison | Spotted Executioner 19399 | -6/Garrison | Discovered new exit (range 10) 19512 | -6/Garrison | Entered Factory 19554 | -6/Factory | Repaired Lyr. Heavy Armor Plating 19573 | -6/Factory | Discovered new exit (range 7) 19642 | -6/Factory | Spotted B-75 Beast 19976 | -6/Factory | Lost 4 parts (1p2u1w) 20008 | -6/Factory | System corruption reached 10% 20149 | -6/Factory | Discovered new exit (range 20) 20363 | -6/Factory | Build established: Botlord-Skirmisher 20810 | -6/Factory | Core integrity fell below 50% 20815 | -6/Factory | Identified exit to Garrison 20815 | -6/Factory | Entered Garrison 20865 | -6/Garrison | Expanded RIF knowledge: Robot Detection 20912 | -6/Garrison | Found embedded Infiltrators 20960 | -6/Garrison | Garrison Relay disabled 21014 | -6/Garrison | Triggered checkpoint 21062 | -6/Garrison | Triggered checkpoint 21107 | -6/Garrison | Build established: Botlord-Tank 21122 | -6/Garrison | Garrison Relay disabled 21183 | -6/Garrison | Discovered new exit (range 15) 21403 | -6/Garrison | Discovered new exit (range 80) 21403 | -6/Garrison | Discovered new exit (range 57) 21403 | -6/Garrison | Discovered new exit (range 18) 21572 | -6/Garrison | Rewired B-90 Cyclops 21575 | -6/Garrison | Identified exit to Factory 21941 | -6/Garrison | Found Quantum Capacitor 22137 | -6/Garrison | Build established: Botlord-Gunner 22305 | -6/Garrison | Entered Factory 22305 | -5/Factory | Accompanied by 3 allies 22305 | -5/Factory | Evolved 2 slots: Utility x2 22445 | -5/Factory | Build established: Botlord-Tank 22722 | -5/Factory | Found Powered Armor 22725 | -5/Factory | Found Powered Armor 22802 | -5/Factory | P-70 Sage assimilated allied Guardian 5b 22810 | -5/Factory | P-70 Sage assimilated allied G-50 Soldier 23592 | -5/Factory | Attached Powered Cannon, gained temporary slot: Power 23613 | -5/Factory | Identified exit to Garrison 23634 | -5/Factory | Entered Garrison 23644 | -5/Garrison | Triggered checkpoint 23841 | -5/Garrison | Destroyed 10 combat bots 23881 | -5/Garrison | Spotted B-75 Beast 23885 | -5/Garrison | Destroyed B-75 Beast 23948 | -5/Garrison | Expanded RIF knowledge: Autoassimilate 24008 | -5/Garrison | Triggered checkpoint 24024 | -5/Garrison | Garrison Relay disabled 24085 | -5/Garrison | Discovered new exit (range 14) 24140 | -5/Garrison | Triggered checkpoint 24176 | -5/Garrison | Triggered checkpoint 24209 | -5/Garrison | Garrison Relay disabled 24213 | -5/Garrison | Lost 3 allies 24304 | -5/Garrison | Garrison Relay disabled 24368 | -5/Garrison | Triggered checkpoint 24511 | -5/Garrison | Discovered new exit (range 10) 24593 | -5/Garrison | Phase Generator disabled 24611 | -5/Garrison | Lost 3 allies 24808 | -5/Garrison | Triggered checkpoint 24814 | -5/Garrison | Garrison Relay disabled 24874 | -5/Garrison | Triggered checkpoint 24955 | -5/Garrison | Discovered new exit (range 14) 25015 | -5/Garrison | H-XX Assembler disabled 25168 | -5/Garrison | Lost 3 allies 25413 | -5/Garrison | Entered Factory 25413 | -4/Factory | Evolved 2 slots: Propulsion x1, Utility x1 25486 | -4/Factory | Found Quantum Capacitor 25565 | -4/Factory | Fabricated Biometal Heavy Treads (x1) 25625 | -4/Factory | Spotted B-86 Titan 25675 | -4/Factory | Destroyed B-86 Titan 25970 | -4/Factory | Build established: Botlord-Mutant 26215 | -4/Factory | Discovered new exit (range 6) 26411 | -4/Factory | Discovered new exit (range 5) 26564 | -4/Factory | Discovered new exit (range 8) 26717 | -4/Factory | System corruption reached 10% 27053 | -4/Factory | P-70 Sage assimilated allied Veteran 7c 27055 | -4/Factory | Build established: Botlord-Tank 27096 | -4/Factory | Lost 4 parts (1p2u1w) 27289 | -4/Factory | Identified exit to Garrison 27289 | -4/Factory | Entered Garrison 27348 | -4/Garrison | Spotted B-86 Titan 27412 | -4/Garrison | Destroyed B-86 Titan 27439 | -4/Garrison | Lost 6 parts (1n2u3w) 27652 | -4/Garrison | Build established: Botlord-Mutant 27656 | -4/Garrison | Triggered checkpoint 27785 | -4/Garrison | Triggered checkpoint 28029 | -4/Garrison | Triggered checkpoint 28053 | -4/Garrison | Triggered checkpoint 28053 | -4/Garrison | Triggered checkpoint 28061 | -4/Garrison | P-70 Sage assimilated allied Swordsman 7c 28075 | -4/Garrison | Triggered checkpoint 28142 | -4/Garrison | Lost 7 allies 28179 | -4/Garrison | Triggered checkpoint 28210 | -4/Garrison | Garrison Relay disabled 28254 | -4/Garrison | Expanded RIF knowledge: Autooverride 28618 | -4/Garrison | Discovered new exit (range 12) 28783 | -4/Garrison | Build established: Botlord-Tank 28830 | -4/Garrison | Discovered new exit (range 4) 28963 | -4/Garrison | Garrison Relay disabled 29167 | -4/Garrison | Learned Research security intel 29203 | -4/Garrison | Triggered checkpoint 29223 | -4/Garrison | Garrison Relay disabled 29471 | -4/Garrison | Discovered new exit (range 12) 29485 | -4/Garrison | Triggered checkpoint 29535 | -4/Garrison | Garrison Relay disabled 29650 | -4/Garrison | Entered Research 29650 | -3/Research | Accompanied by 4 allies 29650 | -3/Research | Evolved 2 slots: Utility x2 29896 | -3/Research | Spotted B-86 Titan 30263 | -3/Research | Lost 3 allies 30361 | -3/Research | Lost 3 allies 30608 | -3/Research | Identified exit to Garrison 30608 | -3/Research | Entered Garrison 30634 | -3/Garrison | Lost 3 allies 30671 | -3/Garrison | Spotted B-75 Beast 30674 | -3/Garrison | Rewired B-90 Cyclops 30680 | -3/Garrison | Rewired B-86 Titan 30694 | -3/Garrison | Allies destroyed B-75 Beast 30855 | -3/Garrison | Discovered new exit (range 6) 30956 | -3/Garrison | Triggered checkpoint 30984 | -3/Garrison | Garrison Relay disabled 31161 | -3/Garrison | P-80 Master assimilated allied Beamer 8a 31360 | -3/Garrison | Triggered checkpoint 31394 | -3/Garrison | Triggered checkpoint 31516 | -3/Garrison | Expanded RIF knowledge: Autooverride 31714 | -3/Garrison | Triggered checkpoint 31822 | -3/Garrison | Build established: Botlord-Mutant 32138 | -3/Garrison | Lost 3 parts (3p) 32490 | -3/Garrison | Lost 3 parts (3p) 32647 | -3/Garrison | Discovered new exit (range 16) 32791 | -3/Garrison | Build established: Botlord-Tank 33105 | -3/Garrison | Spotted B-86 Titan 33118 | -3/Garrison | Allies destroyed B-86 Titan 33145 | -3/Garrison | Found Hvy. Reflective Plating 33265 | -3/Garrison | Discovered new exit (range 14) 33396 | -3/Garrison | Discovered new exit (range 14) 33498 | -3/Garrison | Entered Research 33498 | -3/Research | Accompanied by 1 ally 33751 | -3/Research | Spotted B-86 Titan 33910 | -3/Research | Spotted B-86 Titan 33929 | -3/Research | Destroyed B-86 Titan 34214 | -3/Research | Spotted B-86 Titan 34225 | -3/Research | Allies destroyed B-86 Titan 34249 | -3/Research | Garrison activated, responded to threat 34320 | -3/Research | Lost 4 allies 34622 | -3/Research | Build established: Botlord-Gunner 34627 | -3/Research | Discovered new exit (range 8) 34636 | -3/Research | Entered Quarantine 34658 | -3/Quarantine | Found Alien Artifact 34680 | -3/Quarantine | Identified Core Reset Matrix 35025 | -3/Quarantine | Garrison activated, responded to threat 35267 | -3/Quarantine | Build established: Botlord-Mutant 35270 | -3/Quarantine | Cryocooling Duct disabled 35285 | -3/Quarantine | Ambient heat levels rising (+20) 35285 | -3/Quarantine | Non-combat units ordered to evacuate 35489 | -3/Quarantine | Found Alien Artifact 35489 | -3/Quarantine | Identified Terrabomb 35489 | -3/Quarantine | Used Terrabomb 35516 | -3/Quarantine | Found Terrabomb 35586 | -3/Quarantine | Found Alien Energy Cannon 35586 | -3/Quarantine | Identified Core Cannon 35605 | -3/Quarantine | Found Alien Artifact 35605 | -3/Quarantine | Identified Phase Redirector 35718 | -3/Quarantine | System corruption reached 10% 35752 | -3/Quarantine | Discovered new exit (range 8) 35792 | -3/Quarantine | Found Alien Impact Weapon 35840 | -3/Quarantine | Entered Research 35840 | -2/Research | Evolved 2 slots: Power x1, Utility x1 36154 | -2/Research | Spotted B-90 Cyclops 36157 | -2/Research | Identified Core Stripper 36167 | -2/Research | Destroyed B-90 Cyclops 36241 | -2/Research | Spotted B-90 Cyclops 36279 | -2/Research | Lost 3 parts (1n2u) 36292 | -2/Research | Core integrity fell below 50% 36360 | -2/Research | Core integrity fell below 20% 36378 | -2/Research | Lost 11 parts (3p1n5u2w) 36568 | -2/Research | System corruption reached 10% 36580 | -2/Research | Lost 5 parts (4u1w) 36656 | -2/Research | Found Hvy. Insulated Plating 36818 | -2/Research | Destroyed by X-82 Rainmaker with Heavy Flak Cannon Last Messages --------------- 36758_ RIF reveals location of hidden door. 36763_ System corrupted: Matter fused (-7). 36776_ System corrupted: Gamma Rifle failed to cycle. 36777_ Slug penetrates Wall. 36780_ Y-72 Warden system terminally corrupted. 36780_ Adv. Heat Sink fried. 36780_ Knocked back. 36791_ K-01 Serf collects debris. 36792_ Knocked back. 36792_ Gamma Rifle destroyed. 36795_ K-01 Serf collects debris. 36799_ System corrupted: Component data lost. 36800_ X-82 Rainmaker system terminally corrupted. 36805_ Acquired 95 matter. 36808_ Acquired Unknown Protection. 36808_ Identified Hvy. Armor Plating. 36809_ Acquired 17 matter. 36818_ Knocked back. Map ----- +----------------------------------------------------+ | ?????????????????????????????????????????????????? | | ?????????????????????????????????????????????????? | | ?????????????????????????????????????????????????? | | ?????????????????????????????????????????????????? | | ?????????????????????????????????????????????????? | | ?????????????????????????????????????????????????? | | ???????????????????????????????????????? #???????? | | ????????????????????????????????"""""" #???????? | | ????????????????????????????# ? #???????? | | ????????????????????????????# =#???????? | | ????????????????????????????# """"""" #???????? | | ????????????????????????????# """"""" #???????? | | ????????????????????????????? """"""" #???????? | | ??????????????????????????????? ?????????? | | ????????????????????????????????? ???????????? | | ????????????????????????????????###+#########????? | | ?????????????????################ #????# | | ??????????H??? k % % #????# | | ?????????????? #????# | | ???????????????????######x####### #????# | | ???????????????????# k ##????## ##### ^^ #????# | | ???????????????????# ! #?????# #?# # #????# | | ???????????????????# #??????# #??#" #????# | | ???????????????????#!!==! ########+##### #????# | | ???????????????????#!===* # # #????# | | ???????????????????#!==[[@# ] # #????# | | ???????????????????###+#### """"""= # ##???# | | ?????????????????????#%#??# ""S""" # "#???# | | ?????????????????????# #??# """ # # ##?# | | ?????????????????????#=#??# # ##"### | | ??????????????????#### #### # ! | | ?????????????????### "=] +! """ """ + ! | | ?????#############"######## """ """ # | | ????## """ = ##??????# """ """ # | | ????"" "Y" #???????# # ###### | | ????"" !#???????# # #????? | | ???#"" #################/#### #????? | | ???#T # #????? | | ???#"" + #????? | | ???#"" """ ! # !#????? | | ????"" """" # #????? | | ?????# """" # #######+##### !]! #????? | | ?????# """ # #???? ??# !! #????? | | ?????# # #?? # ] ##???? | | ?????# = # #?# """ # !###### | | ?????######+####### #?# ""T"" # !!!%! ] % | | ??????????# #?????# #?# "" "" # !!!!###### | | ??????#####+####??# #?# # %! !!###### | | ??????# #??# #?# # #####*=##? | | ??????# #??# #?# !# #???#=!# ## | +----------------------------------------------------+ Best States ------------- Heat Dissipation 139 Energy Generation 45 Energy Capacity 1350 Matter Stores 300 Matter Capacity 300 Sight Range 22 Robot Scan Range 15 Terrain Scan Density 10 ECM Strength 1 Jamming Range 12 Corruption Block 20 Armor Coverage 1650 Resistance: KI 20 Resistance: TH 25 Resistance: EM 30 Core Shielding 30 Evasion (%) 70 Targeting Accuracy 8 Target Analysis 8 Recoil Reduction 4 Energy Filtering 50 Force Boost 30 Offensive Hacking 14 Relay Coupler Types 6 Relay Coupler Value 268 Trap Extractor Capacity 6 Item Schematics ----------------- Hcp. Storage Unit | -2/Research | Hacked Robot Schematics ------------------ None Fabricated ------------ Antigrav Array | x1 | -6/Factory | Preloaded Biometal Heavy Treads | x1 | -4/Factory | Preloaded Repaired ---------- Lgt. Treads | 37% | -8/Materials Hvy. Ion Engine | 50% | -8/Materials Lgt. Antimatter Reactor | 20% | -7/Factory Titanium Leg | 44% | -7/Factory Imp. Light Armor Plating | 54% | -7/Factory Prc. Assault Rifle | 15% | -7/Factory Arm. Huge Wheel | 59% | -7/Factory Imp. Deuterium Engine | 40% | -7/Factory Lyr. Heavy Armor Plating | 4% | -6/Factory Alien Tech Used ----------------- Terrabomb Core Cannon Phase Redirector Core Stripper Achievements -------------- Sunderer Challenges ------------ None Game ------ Seed FieldResetField Manual? 0 Play Time 06:38:55 Cumulative 351.8 hours Start 2025.05.29 @ 00:38:41 End 2025.06.03 @ 22:12:17 Sessions 12 Manual Loads 0 Difficulty Rogue Special Mode None Game No. 222 Rogue 222 Adventurer 0 Explorer 0 Win Type - Total 6 Types 6/0/0/0/0/0/0/0/0/0 Lore% 74 Gallery% 73 Achievement% 66 Wizard Run 0 Options --------- Layout 1 ASCII 0 Keyboard 1 Movement Numpad Keybinds 0 Fullscreen 2 Font 24/Smallcaps Map View 50x35 Zoom Use 0% Tactical HUD 1 Map Filters NONE Filters NONE Steam 1 RUN: a191fa82-99fb-4459-9839-0f42aea654c4